fUSD/lending_fUSD_20260106
["ID","MTS","AMOUNT","RATE_DAILY","PERIOD"]
[400521238,1767694262181,-252.316236,0.000381,31]
[400521239,1767694262194,-352.893641,0.000381,2]
[400521240,1767694262203,-205.830398,0.000381,31]
[400521241,1767694262214,-151.0,0.000381,31]
[400521242,1767694262224,-151.0,0.000381,31]
[400521243,1767694262234,-188.0,0.000381,31]
[400521244,1767694262244,-151.0,0.000381,31]
[400521245,1767694262253,-152.142013,0.000381,31]
[400521246,1767694262263,-151.0,0.000381,31]
[400521247,1767694262273,-304.727071,0.000381,31]
[400521248,1767694262282,-213.252232,0.000381,31]
[400521249,1767694262291,-304.727071,0.000381,31]
[400521250,1767694262301,-213.252232,0.000381,31]
[400521251,1767694262310,-151.0,0.000381,31]
[400521252,1767694262320,-304.727071,0.000381,31]
[400521253,1767694262329,-213.252232,0.000381,31]
[400521254,1767694262339,-151.0,0.000381,31]
[400521255,1767694262349,-304.727071,0.000381,31]
[400521256,1767694262358,-213.252232,0.000381,31]
[400521257,1767694262368,-674.73749,0.000381,31]
[400521258,1767694262377,-166.561057,0.000381,31]
[400521259,1767694262386,-178.904291,0.000381,31]
[400521260,1767694262399,-674.73749,0.000381,31]
[400521261,1767694262408,-674.73749,0.000381,31]
[400521262,1767694262419,-674.73749,0.000381,31]
[400521263,1767694262428,-193.546257,0.000381,7]
[400521264,1767694262437,-193.546257,0.000381,7]
[400521265,1767694262448,-193.546257,0.000381,7]
[400521266,1767694262457,-193.546257,0.000381,7]
[400521267,1767694262467,-717.90914,0.000381,28]
[400521268,1767694262477,-717.90914,0.000381,28]
[400521269,1767694262487,-717.90914,0.000381,28]
[400521270,1767694262496,-717.90914,0.000381,28]
[400521271,1767694262506,-151.0,0.000381,31]
[400521272,1767694262515,-309.889383,0.000381,31]
[400521273,1767694262524,-309.889383,0.000381,31]
[400521274,1767694262534,-309.889383,0.000381,31]
[400521275,1767694262543,-353.113136,0.000381,31]
[400521276,1767694262552,-309.889383,0.000381,31]
[400521277,1767694262563,-173.65,0.000381,31]
[400521278,1767694262572,-353.113136,0.000381,31]
[400521279,1767694262582,-173.65,0.000381,31]
[400521280,1767694262591,-353.113136,0.000381,31]
[400521281,1767694262600,-173.65,0.000381,31]
[400521282,1767694262610,-353.113136,0.000381,31]
[400521283,1767694262619,-173.65,0.000381,31]
[400521284,1767694262628,-151.54282487,0.0003813,120]
[400521285,1767694262637,-652.44320176,0.00038188,5]
[400521286,1767694262648,-455.92756,0.00038291,30]
[400521287,1767694262658,-391.63239789,0.000383,2]
[400521288,1767694262667,-1000.0,0.00038356,120]
[400521289,1767694262677,-530.0,0.00038356,120]
[400521290,1767694262686,-556.09831647,0.00038356,120]
[400521291,1767694262696,-208.127833,0.00038356,120]
[400521292,1767694262705,-289.624119,0.00038356,120]
[400521293,1767694262716,-302.14705275,0.000384,2]
[400521294,1767694262726,-530.0,0.00038411,120]
[400521295,1767694262735,-530.0,0.00038466,120]
[400521296,1767694262745,-447.3913417,0.00038483,2]
[400521297,1767694262754,-455.92756,0.00038491,30]
[400521298,1767694262764,-530.0,0.0003852,120]
[400521299,1767694262778,-530.0,0.00038575,120]
[400521300,1767694262787,-21905.80140277,0.00038599,2]
[400521301,1767694262796,-160.2,0.000386,30]
[400521302,1767694262806,-161.6372388,0.0003861,30]
[400521303,1767694262818,-530.0,0.0003863,120]
[400521304,1767694262828,-530.0,0.00038685,120]
[400521305,1767694262839,-455.92756,0.00038691,30]
[400521306,1767694262848,-500.0,0.000387,120]
[400521307,1767694262858,-500.0,0.000387,120]
[400521308,1767694262868,-500.0,0.000387,120]
[400521309,1767694262878,-500.0,0.000387,120]
[400521310,1767694262888,-500.0,0.000387,120]
[400521311,1767694262901,-500.0,0.000387,120]
[400521312,1767694262911,-500.0,0.000387,120]
[400521313,1767694262921,-500.0,0.000387,120]
[400521314,1767694262931,-500.0,0.000387,120]
[400521315,1767694262941,-500.0,0.000387,120]
[400521316,1767694262951,-500.0,0.000387,120]
[400521317,1767694262961,-500.0,0.000387,120]
[400521318,1767694262971,-500.0,0.000387,120]
[400521319,1767694262980,-500.0,0.000387,120]
[400521320,1767694262990,-500.0,0.000387,120]
[400521321,1767694263000,-500.0,0.000387,120]
[400521322,1767694263011,-500.0,0.000387,120]
[400521323,1767694263022,-500.0,0.000387,120]
[400521324,1767694263032,-500.0,0.000387,120]
[400521325,1767694263043,-500.0,0.000387,120]
[400521326,1767694263056,-4924.18,0.000387,30]
[400521327,1767694263065,-887.6,0.000387,14]
[400521328,1767694263074,-530.0,0.0003874,120]
[400521329,1767694263085,-530.0,0.00038794,120]
[400521330,1767694263094,-12444.91040002,0.00038798,2]
[400521331,1767694263105,-743.88539874,0.00038798,2]
[400521332,1767694263116,-211.7285009,0.00038798,2]
[400521333,1767694263126,-900.38494552,0.00038798,2]
[400521334,1767694263136,-991.46,0.00038799,120]
[400521335,1767694263147,-991.46,0.00038799,120]
[400521336,1767694263158,-991.46,0.00038799,120]
[400521337,1767694263175,-991.46,0.00038799,120]
[400521338,1767694263186,-991.51225152,0.00038799,120]
[400521339,1767694263199,-3357.82561686,0.000388,2]
[400521340,1767694263458,-3077.77034775,0.000388,2]
[400521341,1767694263986,-500.0,0.00032876,120]
[400521342,1767694263996,-480.53131384,0.00032876,120]
[400521343,1767694264005,-500.0,0.00032876,120]
[400521344,1767694264014,-500.0,0.00032876,120]
[400521345,1767694264024,-200.48121932,0.00032876,120]
[400521346,1767694264304,-111.53835126,0.00032876,120]
[400521347,1767694264314,-406.36287372,0.00032876,120]
[400521348,1767694264324,-10124.50883993,0.00033896,2]
[400521349,1767694264335,-4081.11944389,0.000388,2]
[400521350,1767694264345,-827.0,0.000388,14]
[400521351,1767694264354,-40476.41060641,0.000388,2]
[400521352,1767694264524,-3333.43939359,0.000388,2]
[400521353,1767694264533,-187.15,0.00038829,2]
[400521354,1767694264542,-530.0,0.00038849,120]
[400521355,1767694264551,-300.0,0.00038861,2]
[400521356,1767694264560,-300.0,0.00038861,2]
[400521357,1767694264569,-300.0,0.00038861,2]
[400521358,1767694264578,-300.9632187,0.00038861,2]
[400521359,1767694264587,-300.0,0.00038861,2]
[400521360,1767694264596,-300.0,0.00038861,2]
[400521361,1767694264605,-300.0,0.00038861,2]
[400521362,1767694264615,-300.0,0.00038861,2]
[400521363,1767694264625,-300.0,0.00038861,2]
[400521364,1767694264634,-306.52741053,0.00038861,2]
[400521365,1767694264643,-304.06299242,0.00038861,2]
[400521366,1767694264652,-304.06299242,0.00038861,2]
[400521367,1767694264661,-304.06299242,0.00038861,2]
[400521368,1767694264670,-304.06299242,0.00038861,2]
[400521369,1767694264680,-304.06299242,0.00038861,2]
[400521370,1767694264690,-304.06299242,0.00038861,2]
[400521371,1767694264701,-304.06299242,0.00038861,2]
[400521372,1767694264710,-304.06299242,0.00038861,2]
[400521373,1767694264718,-304.06299242,0.00038861,2]
[400521374,1767694264729,-304.06299242,0.00038861,2]
[400521375,1767694264739,-304.06299242,0.00038861,2]
[400521376,1767694264749,-304.06299242,0.00038861,2]
[400521377,1767694264758,-304.06299242,0.00038861,2]
[400521378,1767694264767,-304.06299242,0.00038861,2]
[400521379,1767694264777,-304.06299242,0.00038861,2]
[400521380,1767694264786,-304.06299242,0.00038861,2]
[400521381,1767694264798,-304.06299242,0.00038861,2]
[400521382,1767694264808,-304.06299242,0.00038861,2]
[400521383,1767694264818,-304.06299242,0.00038861,2]
[400521384,1767694264828,-304.06299242,0.00038861,2]
[400521385,1767694264837,-304.06299242,0.00038861,2]
[400521386,1767694264847,-304.06299242,0.00038861,2]
[400521387,1767694264858,-401.6283894,0.00038861,2]
[400521388,1767694264867,-307.24100051,0.00038861,2]
[400521389,1767694264877,-303.96470351,0.00038861,2]
[400521390,1767694264886,-304.06299242,0.00038861,2]
[400521391,1767694264896,-304.06299242,0.00038861,2]
[400521392,1767694264905,-304.06299242,0.00038861,2]
[400521393,1767694264915,-304.06299242,0.00038861,2]
[400521394,1767694264924,-304.06299242,0.00038861,2]
[400521395,1767694264935,-304.06299242,0.00038861,2]
[400521396,1767694264944,-304.06299242,0.00038861,2]
[400521397,1767694264954,-15076.23049798,0.00038874,2]
[400521398,1767694264964,-365.0,0.0003888,2]
[400521399,1767694264973,-365.0,0.0003888,2]
[400521400,1767694264983,-455.92756,0.00038891,30]
[400521401,1767694264993,-370.02737642,0.00038895,2]
[400521402,1767694265003,-3080.24,0.00038897,14]
[400521403,1767694265013,-538.23,0.00038897,120]
[400521404,1767694265022,-404.80975971,0.00038898,2]
[400521405,1767694265032,-301.80219433,0.00038898,2]
[400521406,1767694265041,-300.97693824,0.00038898,2]
[400521407,1767694265050,-300.0,0.00038898,2]
[400521408,1767694265060,-572.94676088,0.00038898,2]
[400521409,1767694265069,-455.124797,0.00038898,2]
[400521410,1767694265078,-300.0,0.00038898,2]
[400521411,1767694265087,-300.0,0.00038898,2]
[400521412,1767694265096,-1073.62216031,0.00038898,2]
[400521413,1767694265106,-300.0,0.00038898,2]
[400521414,1767694265115,-300.0,0.00038898,2]
[400521415,1767694265123,-368.50050943,0.00038898,2]
[400521416,1767694265133,-455.124797,0.00038898,2]
[400521417,1767694265142,-300.0,0.00038898,2]
[400521418,1767694265151,-300.0,0.00038898,2]
[400521419,1767694265160,-1073.62216029,0.00038898,2]
[400521420,1767694265169,-300.0,0.00038898,2]
[400521421,1767694265178,-300.0,0.00038898,2]
[400521422,1767694265188,-368.50050943,0.00038898,2]
[400521423,1767694265200,-307.59634245,0.00038898,2]
[400521424,1767694265210,-455.124797,0.00038898,2]
[400521425,1767694265219,-300.0,0.00038898,2]
[400521426,1767694265229,-300.0,0.00038898,2]
[400521427,1767694265238,-1073.62216031,0.00038898,2]
[400521428,1767694265248,-300.0,0.00038898,2]
[400521429,1767694265257,-300.0,0.00038898,2]
[400521430,1767694265266,-368.50050943,0.00038898,2]
[400521431,1767694265276,-303.43367567,0.00038898,2]
[400521432,1767694265285,-300.0,0.00038898,2]
[400521433,1767694265294,-300.0,0.00038898,2]
[400521434,1767694265303,-455.124797,0.00038898,2]
[400521435,1767694265312,-300.0,0.00038898,2]
[400521436,1767694265321,-300.0,0.00038898,2]
[400521437,1767694265330,-1073.62216029,0.00038898,2]
[400521438,1767694265339,-300.0,0.00038898,2]
[400521439,1767694265348,-300.0,0.00038898,2]
[400521440,1767694265357,-368.50050943,0.00038898,2]
[400521441,1767694265366,-455.124797,0.00038898,2]
[400521442,1767694265375,-300.0,0.00038898,2]
[400521443,1767694265384,-300.0,0.00038898,2]
[400521444,1767694265392,-1073.62216031,0.00038898,2]
[400521445,1767694265401,-300.0,0.00038898,2]
[400521446,1767694265411,-300.0,0.00038898,2]
[400521447,1767694265421,-491.33401281,0.00038898,2]
[400521448,1767694265430,-301.62551531,0.00038898,2]
[400521449,1767694265440,-300.86051735,0.00038898,2]
[400521450,1767694265449,-300.79461541,0.00038898,2]
[400521451,1767694265458,-300.88763941,0.00038898,2]
[400521452,1767694265468,-300.93500046,0.00038898,2]
[400521453,1767694265478,-300.87902242,0.00038898,2]
[400521454,1767694265487,-302.38380575,0.00038898,2]
[400521455,1767694265496,-306.56214159,0.00038898,2]
[400521456,1767694265505,-300.84422975,0.00038898,2]
[400521457,1767694265515,-584.39948041,0.00038898,2]
[400521458,1767694265524,-300.87316822,0.00038898,2]
[400521459,1767694265533,-300.99436131,0.00038898,2]
[400521460,1767694265542,-300.90672042,0.00038898,2]
[400521461,1767694265551,-300.9131192,0.00038898,2]
[400521462,1767694265561,-300.96281868,0.00038898,2]
[400521463,1767694265570,-300.8776998,0.00038898,2]
[400521464,1767694265579,-683.00569462,0.00038898,2]
[400521465,1767694265588,-304.77971973,0.00038898,2]
[400521466,1767694265597,-300.0,0.00038898,2]
[400521467,1767694265607,-300.0,0.00038898,2]
[400521468,1767694265620,-300.0,0.00038898,2]
[400521469,1767694265630,-455.124797,0.00038898,2]
[400521470,1767694265639,-300.0,0.00038898,2]
[400521471,1767694265649,-300.0,0.00038898,2]
[400521472,1767694265658,-1073.62216029,0.00038898,2]
[400521473,1767694265667,-300.0,0.00038898,2]
[400521474,1767694265676,-300.0,0.00038898,2]
[400521475,1767694265686,-300.0,0.00038898,2]
[400521476,1767694265695,-300.0,0.00038898,2]
[400521477,1767694265704,-300.0,0.00038898,2]
[400521478,1767694265714,-300.0,0.00038898,2]
[400521479,1767694265724,-300.0,0.00038898,2]
[400521480,1767694265732,-300.0,0.00038898,2]
[400521481,1767694265742,-300.0,0.00038898,2]
[400521482,1767694265751,-303.6046697,0.00038898,2]
[400521483,1767694265760,-300.0,0.00038898,2]
[400521484,1767694265769,-578.25219669,0.00038898,2]
[400521485,1767694265778,-300.0,0.00038898,2]
[400521486,1767694265788,-300.0,0.00038898,2]
[400521487,1767694265797,-300.0,0.00038898,2]
[400521488,1767694265807,-300.0,0.00038898,2]
[400521489,1767694265818,-300.0,0.00038898,2]
[400521490,1767694265828,-300.0,0.00038898,2]
[400521491,1767694265838,-304.7797197,0.00038898,2]
[400521492,1767694265849,-300.0,0.00038898,2]
[400521493,1767694265859,-300.0,0.00038898,2]
[400521494,1767694265868,-455.124797,0.00038898,2]
[400521495,1767694265878,-300.0,0.00038898,2]
[400521496,1767694265887,-300.0,0.00038898,2]
[400521497,1767694265897,-1073.62216031,0.00038898,2]
[400521498,1767694265907,-300.0,0.00038898,2]
[400521499,1767694265917,-300.0,0.00038898,2]
[400521500,1767694265927,-300.0,0.00038898,2]
[400521501,1767694265937,-300.0,0.00038898,2]
[400521502,1767694265947,-300.0,0.00038898,2]
[400521503,1767694265957,-300.0,0.00038898,2]
[400521504,1767694265966,-300.0,0.00038898,2]
[400521505,1767694265976,-300.0,0.00038898,2]
[400521506,1767694265985,-303.69339385,0.00038898,2]
[400521507,1767694265995,-578.43661522,0.00038898,2]
[400521508,1767694266005,-362.10901698,0.00038898,2]
[400521509,1767694266016,-300.0,0.00038898,2]
[400521510,1767694266027,-300.0,0.00038898,2]
[400521511,1767694266037,-300.0,0.00038898,2]
[400521512,1767694266047,-300.0,0.00038898,2]
[400521513,1767694266057,-300.0,0.00038898,2]
[400521514,1767694266067,-304.86824505,0.00038898,2]
[400521515,1767694266077,-300.0,0.00038898,2]
[400521516,1767694266088,-300.0,0.00038898,2]
[400521517,1767694266098,-455.124797,0.00038898,2]
[400521518,1767694266111,-300.0,0.00038898,2]
[400521519,1767694266122,-586.611308,0.00038898,2]
[400521520,1767694266132,-1073.62216029,0.00038898,2]
[400521521,1767694266142,-300.0,0.00038898,2]
[400521522,1767694266152,-551.08549583,0.00038898,2]
[400521523,1767694266161,-300.0,0.00038898,2]
[400521524,1767694266170,-360.53749023,0.00038898,2]
[400521525,1767694266181,-335.447778,0.00038898,2]
[400521526,1767694266191,-505.30483469,0.00038898,2]
[400521527,1767694266204,-305.9028837,0.00038898,2]
[400521528,1767694266214,-300.0,0.00038898,2]
[400521529,1767694266223,-303.69339385,0.00038898,2]
[400521530,1767694266233,-578.43661521,0.00038898,2]
[400521531,1767694266244,-330.06549305,0.00038898,2]
[400521532,1767694266254,-406.71032994,0.00038898,2]
[400521533,1767694266264,-300.4324882,0.00038898,2]
[400521534,1767694266274,-300.0,0.00038898,2]
[400521535,1767694266284,-300.72288299,0.00038898,2]
[400521536,1767694266293,-676.29690699,0.00038898,2]
[400521537,1767694266302,-304.86824505,0.00038898,2]
[400521538,1767694266312,-300.0,0.00038898,2]
[400521539,1767694266321,-385.00230328,0.00038898,2]
[400521540,1767694266331,-455.124797,0.00038898,2]
[400521541,1767694266340,-300.0,0.00038898,2]
[400521542,1767694266349,-357.87405358,0.00038898,2]
[400521543,1767694266358,-300.0,0.00038898,2]
[400521544,1767694266368,-300.0,0.00038898,2]
[400521545,1767694266379,-300.0,0.00038898,2]
[400521546,1767694266389,-300.0,0.00038898,2]
[400521547,1767694266399,-300.0,0.00038898,2]
[400521548,1767694266408,-300.0,0.00038898,2]
[400521549,1767694266418,-300.0,0.00038898,2]
[400521550,1767694266428,-300.0,0.00038898,2]
[400521551,1767694266438,-303.69339385,0.00038898,2]
[400521552,1767694266447,-300.0,0.00038898,2]
[400521553,1767694266456,-578.43661521,0.00038898,2]
[400521554,1767694266466,-300.0,0.00038898,2]
[400521555,1767694266475,-300.0,0.00038898,2]
[400521556,1767694266484,-300.0,0.00038898,2]
[400521557,1767694266494,-300.0,0.00038898,2]
[400521558,1767694266503,-300.0,0.00038898,2]
[400521559,1767694266515,-300.0,0.00038898,2]
[400521560,1767694266524,-676.29690702,0.00038898,2]
[400521561,1767694266534,-304.86824505,0.00038898,2]
[400521562,1767694266544,-300.0,0.00038898,2]
[400521563,1767694266553,-300.0,0.00038898,2]
[400521564,1767694266563,-300.0,0.00038898,2]
[400521565,1767694266573,-455.124797,0.00038898,2]
[400521566,1767694266582,-300.0,0.00038898,2]
[400521567,1767694266592,-300.0,0.00038898,2]
[400521568,1767694266601,-300.0,0.00038898,2]
[400521569,1767694266611,-300.0,0.00038898,2]
[400521570,1767694266620,-367.65240202,0.00038898,2]
[400521571,1767694266629,-300.0,0.00038898,2]
[400521572,1767694266638,-300.0,0.00038898,2]
[400521573,1767694266648,-300.0,0.00038898,2]
[400521574,1767694266657,-300.0,0.00038898,2]
[400521575,1767694266666,-303.69339385,0.00038898,2]
[400521576,1767694266676,-320.19004811,0.00038898,2]
[400521577,1767694266685,-578.43661521,0.00038898,2]
[400521578,1767694266694,-300.0,0.00038898,2]
[400521579,1767694266703,-300.0,0.00038898,2]
[400521580,1767694266713,-300.0,0.00038898,2]
[400521581,1767694266725,-300.0,0.00038898,2]
[400521582,1767694266734,-300.0,0.00038898,2]
[400521583,1767694266745,-300.0,0.00038898,2]
[400521584,1767694266756,-676.29690698,0.00038898,2]
[400521585,1767694266765,-304.86824505,0.00038898,2]
[400521586,1767694266777,-300.0,0.00038898,2]
[400521587,1767694266786,-432.33947782,0.00038898,2]
[400521588,1767694266795,-455.124797,0.00038898,2]
[400521589,1767694266805,-300.0,0.00038898,2]
[400521590,1767694266815,-300.0,0.00038898,2]
[400521591,1767694266824,-368.50050944,0.00038898,2]
[400521592,1767694266835,-300.0,0.00038898,2]
[400521593,1767694266844,-300.0,0.00038898,2]
[400521594,1767694266854,-303.69339385,0.00038898,2]
[400521595,1767694266864,-578.43661521,0.00038898,2]
[400521596,1767694266873,-532.194673,0.00038898,2]
[400521597,1767694266883,-676.29690702,0.00038898,2]
[400521598,1767694266892,-304.86824505,0.00038898,2]
[400521599,1767694266902,-300.0,0.00038898,2]
[400521600,1767694266911,-606.83306285,0.00038898,2]
[400521601,1767694266921,-300.0,0.00038898,2]
[400521602,1767694266930,-300.0,0.00038898,2]
[400521603,1767694266940,-368.50050943,0.00038898,2]
[400521604,1767694266949,-300.0,0.00038898,2]
[400521605,1767694266962,-300.0,0.00038898,2]
[400521606,1767694266972,-303.69339385,0.00038898,2]
[400521607,1767694266982,-578.43661521,0.00038898,2]
[400521608,1767694266992,-676.29690698,0.00038898,2]
[400521609,1767694267002,-304.86824505,0.00038898,2]
[400521610,1767694267011,-300.0,0.00038898,2]
[400521611,1767694267022,-300.0,0.00038898,2]
[400521612,1767694267032,-300.0,0.00038898,2]
[400521613,1767694267041,-368.50050943,0.00038898,2]
[400521614,1767694267051,-300.0,0.00038898,2]
[400521615,1767694267061,-303.69339385,0.00038898,2]
[400521616,1767694267070,-578.43661521,0.00038898,2]
[400521617,1767694267081,-676.29690702,0.00038898,2]
[400521618,1767694267090,-304.86824505,0.00038898,2]
[400521619,1767694267099,-300.0,0.00038898,2]
[400521620,1767694267109,-1073.62216029,0.00038898,2]
[400521621,1767694267118,-589.63444799,0.00038898,2]
[400521622,1767694267128,-368.50050943,0.00038898,2]
[400521623,1767694267138,-300.0,0.00038898,2]
[400521624,1767694267148,-300.0,0.00038898,2]
[400521625,1767694267158,-301.73792897,0.00038898,2]
[400521626,1767694267167,-575.00478881,0.00038898,2]
[400521627,1767694267176,-676.29690698,0.00038898,2]
[400521628,1767694267186,-304.86824505,0.00038898,2]
[400521629,1767694267197,-300.0,0.00038898,2]
[400521630,1767694267207,-1073.62216031,0.00038898,2]
[400521631,1767694267216,-368.50050943,0.00038898,2]
[400521632,1767694267226,-300.0,0.00038898,2]
[400521633,1767694267237,-305.09310483,0.00038898,2]
[400521634,1767694267246,-305.37269052,0.00038898,2]
[400521635,1767694267256,-303.21410596,0.00038898,2]
[400521636,1767694267267,-300.0,0.00038898,2]
[400521637,1767694267276,-303.60466968,0.00038898,2]
[400521638,1767694267286,-300.0,0.00038898,2]
[400521639,1767694267295,-601.93162556,0.00038898,2]
[400521640,1767694267305,-300.0,0.00038898,2]
[400521641,1767694267315,-300.0,0.00038898,2]
[400521642,1767694267325,-301.43819433,0.00038898,2]
[400521643,1767694267335,-474.51901511,0.00038898,2]
[400521644,1767694267345,-303.79314864,0.00038898,2]
[400521645,1767694267354,-635.78473007,0.00038898,2]
[400521646,1767694267364,-304.86824505,0.00038898,2]
[400521647,1767694267374,-300.0,0.00038898,2]
[400521648,1767694267383,-300.0,0.00038898,2]
[400521649,1767694267393,-1073.62216029,0.00038898,2]
[400521650,1767694267402,-368.50050943,0.00038898,2]
[400521651,1767694267413,-300.0,0.00038898,2]
[400521652,1767694267422,-300.0,0.00038898,2]
[400521653,1767694267431,-304.16404027,0.00038898,2]
[400521654,1767694267440,-304.40764272,0.00038898,2]
[400521655,1767694267450,-300.0,0.00038898,2]
[400521656,1767694267459,-303.60466968,0.00038898,2]
[400521657,1767694267468,-300.0,0.00038898,2]
[400521658,1767694267479,-301.49287482,0.00038898,2]
[400521659,1767694267489,-525.56318237,0.00038898,2]
[400521660,1767694267499,-635.78473007,0.00038898,2]
[400521661,1767694267508,-304.86824505,0.00038898,2]
[400521662,1767694267518,-300.0,0.00038898,2]
[400521663,1767694267527,-313.96862882,0.00038898,2]
[400521664,1767694267536,-1073.62216031,0.00038898,2]
[400521665,1767694267547,-368.50050943,0.00038898,2]
[400521666,1767694267556,-300.0,0.00038898,2]
[400521667,1767694267567,-300.0,0.00038898,2]
[400521668,1767694267735,-300.0,0.00038898,2]
[400521669,1767694267744,-300.0,0.00038898,2]
[400521670,1767694267753,-300.0,0.00038898,2]
[400521671,1767694267762,-300.0,0.00038898,2]
[400521672,1767694267772,-300.0,0.00038898,2]
[400521673,1767694267781,-300.0,0.00038898,2]
[400521674,1767694267789,-303.6046697,0.00038898,2]
[400521675,1767694267798,-300.0,0.00038898,2]
[400521676,1767694267807,-578.43661522,0.00038898,2]
[400521677,1767694267816,-300.0,0.00038898,2]
[400521678,1767694267825,-300.0,0.00038898,2]
[400521679,1767694267835,-300.0,0.00038898,2]
[400521680,1767694267844,-300.0,0.00038898,2]
[400521681,1767694267853,-300.0,0.00038898,2]
[400521682,1767694267862,-300.0,0.00038898,2]
[400521683,1767694267872,-635.78473007,0.00038898,2]
[400521684,1767694267881,-304.86824505,0.00038898,2]
[400521685,1767694267890,-300.0,0.00038898,2]
[400521686,1767694267900,-300.0,0.00038898,2]
[400521687,1767694267910,-300.0,0.00038898,2]
[400521688,1767694267919,-455.124797,0.00038898,2]
[400521689,1767694267929,-1073.62216029,0.00038898,2]
[400521690,1767694267938,-368.50050943,0.00038898,2]
[400521691,1767694267947,-300.0,0.00038898,2]
[400521692,1767694267957,-300.0,0.00038898,2]
[400521693,1767694267966,-300.0,0.00038898,2]
[400521694,1767694267975,-300.0,0.00038898,2]
[400521695,1767694267984,-300.0,0.00038898,2]
[400521696,1767694267994,-300.0,0.00038898,2]
[400521697,1767694268003,-300.0,0.00038898,2]
[400521698,1767694268013,-303.60466968,0.00038898,2]
[400521699,1767694268022,-300.0,0.00038898,2]
[400521700,1767694268033,-578.43661521,0.00038898,2]
[400521701,1767694268042,-300.0,0.00038898,2]
[400521702,1767694268051,-300.0,0.00038898,2]
[400521703,1767694268061,-300.0,0.00038898,2]
[400521704,1767694268071,-300.0,0.00038898,2]
[400521705,1767694268081,-300.0,0.00038898,2]
[400521706,1767694268090,-300.0,0.00038898,2]
[400521707,1767694268100,-635.78473007,0.00038898,2]
[400521708,1767694268109,-304.86824505,0.00038898,2]
[400521709,1767694268118,-300.0,0.00038898,2]
[400521710,1767694268128,-300.0,0.00038898,2]
[400521711,1767694268138,-455.124797,0.00038898,2]
[400521712,1767694268147,-1073.62216031,0.00038898,2]
[400521713,1767694268157,-368.50050943,0.00038898,2]
[400521714,1767694268166,-300.0,0.00038898,2]
[400521715,1767694268176,-300.0,0.00038898,2]
[400521716,1767694268186,-300.0,0.00038898,2]
[400521717,1767694268198,-303.6046697,0.00038898,2]
[400521718,1767694268207,-316.13845159,0.00038898,2]
[400521719,1767694268218,-578.43661521,0.00038898,2]
[400521720,1767694268227,-635.78473007,0.00038898,2]
[400521721,1767694268237,-304.86824505,0.00038898,2]
[400521722,1767694268247,-300.0,0.00038898,2]
[400521723,1767694268256,-455.124797,0.00038898,2]
[400521724,1767694268267,-1073.62216029,0.00038898,2]
[400521725,1767694268277,-368.50050943,0.00038898,2]
[400521726,1767694268287,-300.0,0.00038898,2]
[400521727,1767694268296,-300.0,0.00038898,2]
[400521728,1767694268306,-300.0,0.00038898,2]
[400521729,1767694268316,-303.60466968,0.00038898,2]
[400521730,1767694268325,-578.43661521,0.00038898,2]
[400521731,1767694268335,-635.78473007,0.00038898,2]
[400521732,1767694268344,-304.86824505,0.00038898,2]
[400521733,1767694268354,-300.0,0.00038898,2]
[400521734,1767694268364,-455.124797,0.00038898,2]
[400521735,1767694268373,-1073.62216031,0.00038898,2]
[400521736,1767694268382,-368.50050943,0.00038898,2]
[400521737,1767694268392,-300.0,0.00038898,2]